bitfinex/quotes_SOLUSD_20260213
["timestamp","ask_amount","ask_price","bid_price","bid_amount"]
[1770995138526,2.24083341,81.386,81.308,98.39110673]
[1770995138527,11.18989632,81.37,81.33,11.18989632]
[1770995138831,2.24083341,81.369,81.33,11.18989632]
[1770995139134,4.61729252,81.384,81.3,11.18989632]
[1770995139135,2.24083341,81.349,81.3,11.18989632]
[1770995139434,2.24083341,81.349,81.29,0.2]
[1770995139435,2.2020215,81.319,81.29,0.2]
[1770995139623,11.18989632,81.32,81.29,0.2]
[1770995139624,2.2020215,81.317,81.29,0.2]
[1770995140026,2.2020215,81.317,81.283,0.2483115]
[1770995140027,11.18989632,81.31,81.283,0.2483115]
[1770995140220,2.2020215,81.309,81.283,0.2483115]
[1770995140636,2.2020215,81.309,81.283,1e-08]
[1770995140940,2.2020215,81.299,81.283,1e-08]
[1770995141624,36.64,81.305,81.283,1e-08]
[1770995141625,2.2020215,81.297,81.283,1e-08]
[1770995141828,2.2020215,81.289,81.25,11.18989632]
[1770995142143,2.2020215,81.279,81.24,11.18989632]
[1770995142322,2.2020215,81.289,81.25,11.18989632]
[1770995142523,2.2020215,81.289,81.241,12.30905577]
[1770995142725,2.2020215,81.289,81.25,11.18989632]
[1770995143042,36.68,81.292,81.23,23.60048386]
[1770995143043,2.2020215,81.269,81.23,23.60048386]
[1770995143335,2.2020215,81.267,81.23,0.1]
[1770995143538,239.85829905,81.298,81.23,0.1]
[1770995143539,2.2020215,81.249,81.23,0.1]
[1770995143740,2.2020215,81.247,81.23,0.1]
[1770995143926,2.2020215,81.236,81.197,6.42031494]
[1770995144119,2.2020215,81.209,81.186,2.09058045]
[1770995144319,13.39191782,81.2,81.18,0.1]
[1770995144635,2.2020215,81.219,81.18,0.1]
[1770995144828,2.2020215,81.219,81.18,11.28989632]
[1770995145029,2.2020215,81.219,81.18,0.1]
[1770995145030,11.18989632,81.21,81.18,0.1]
[1770995145229,36.7,81.224,81.181,2.22764207]
[1770995145430,11.18989632,81.21,81.18,0.1]
[1770995145631,2.2020215,81.217,81.18,0.1]
[1770995145832,12.31254155,81.218,81.19,11.18989632]
[1770995146032,12.31254155,81.218,81.181,2.22764207]
[1770995146221,36.72,81.236,81.2,11.18989632]
[1770995146422,11.18989632,81.22,81.18,13.51753839]
[1770995146628,11.18989632,81.22,81.181,2.22764207]
[1770995146828,2.2020215,81.229,81.181,2.22764207]
[1770995147121,43.08275581,81.239,81.191,2.22764207]
[1770995147326,2.2020215,81.238,81.191,2.22764207]
[1770995147644,2.2020215,81.238,81.18,0.1]
[1770995147645,12.30784378,81.249,81.21,13.41753839]
[1770995147829,43.07745325,81.249,81.211,2.22764207]
[1770995148626,2.2020215,81.248,81.201,2.22764207]
[1770995149326,36.78,81.247,81.22,11.18989632]
[1770995149527,36.78,81.247,81.221,2.22764207]
[1770995149830,44.15755242,81.26,81.223,2.22764207]
[1770995149831,12.30632914,81.259,81.223,2.22764207]
[1770995150031,12.30632914,81.259,81.23,11.18989632]
[1770995150237,12.30632914,81.259,81.223,2.22764207]
[1770995150238,14.50835064,81.259,81.223,2.22764207]
[1770995150437,2.2020215,81.258,81.211,2.22764207]
[1770995150742,2.2020215,81.258,81.22,11.18989632]
[1770995150940,2.2020215,81.258,81.213,2.22764207]
[1770995151254,2.2020215,81.258,81.22,13.41753839]
[1770995151448,2.2020215,81.239,81.185,2.22764207]
[1770995151639,2.2020215,81.239,81.18,0.1]
[1770995151640,12.31087419,81.229,81.191,2.22764207]
[1770995151839,2.2020215,81.247,81.2,11.18989632]
[1770995152166,2.2020215,81.229,81.19,11.18989632]
[1770995152332,2.2020215,81.219,81.18,11.28989632]
[1770995152723,4.61729252,81.237,81.201,2.22764207]
[1770995153552,2.2020215,81.239,81.21,11.18989632]
[1770995153745,12.30951032,81.238,81.202,12.31496761]
[1770995154054,12.30951032,81.238,81.21,13.41753839]
[1770995154432,12.30886547,81.243,81.22,11.18989632]
[1770995154739,2.2020215,81.239,81.2,11.18989632]
[1770995154940,2.2020215,81.229,81.18,12.41828082]
[1770995155142,2.2020215,81.227,81.18,23.60817714]
[1770995155327,11.18989632,81.22,81.181,2.22764207]
[1770995155534,11.18989632,81.22,81.181,14.54579533]
[1770995155734,12.31238995,81.219,81.19,13.41753839]
[1770995155947,12.31156904,81.225,81.2,11.18989632]
[1770995156549,36.88,81.231,81.201,2.22764207]
[1770995156769,36.88,81.231,81.181,43.11353641]
[1770995156770,12.31072263,81.23,81.182,2.22764207]
[1770995156957,12.31072263,81.23,81.2,11.18989632]
[1770995157344,12.31072263,81.23,81.181,43.11353641]
[1770995157345,11.18989632,81.22,81.181,14.54567812]
[1770995157539,36.92,81.229,81.201,2.22764207]
[1770995157859,36.92,81.229,81.21,11.18989632]
[1770995158157,37.58812592,81.252,81.19,30.79172807]
[1770995158158,12.31102575,81.228,81.2,23.50514216]
[1770995158353,2.2020215,81.237,81.191,2.22764207]
[1770995158659,12.30951032,81.238,81.211,2.22764207]
[1770995159041,49.24799527,81.248,81.22,11.18989632]
[1770995159245,12.30799527,81.248,81.22,11.18989632]
[1770995159865,12.30799527,81.248,81.221,2.22764207]
[1770995160043,12.30799527,81.248,81.181,5.36086188]
[1770995160044,30.76215812,81.269,81.24,11.18989632]
[1770995160247,30.76215812,81.269,81.197,49.26246186]
[1770995160248,2.2020215,81.259,81.22,11.18989632]
[1770995160448,2.2020215,81.257,81.211,2.22764207]
[1770995160644,4.61729252,81.255,81.211,2.22764207]
[1770995160959,2.12755155,81.254,81.22,11.18989632]
[1770995161162,2.12755155,81.239,81.2,11.18989632]
[1770995161340,2.12755155,81.237,81.2,11.18989632]
[1770995161955,12.31102575,81.228,81.2,11.18989632]
[1770995162360,36.96,81.239,81.21,11.18989632]
[1770995162541,12.30860862,81.244,81.22,11.18989632]
[1770995162738,12.30860862,81.244,81.211,2.26402679]
[1770995162966,13.31744787,81.23,81.191,12.31663608]
[1770995163165,11.18989632,81.24,81.2,11.18989632]
[1770995163344,43.08011174,81.244,81.211,2.26402679]
[1770995163662,12.30511769,81.267,81.231,2.26402679]
[1770995163858,12.30511769,81.267,81.24,11.18989632]
[1770995164061,12.30511769,81.267,81.201,5.36086188]
[1770995164062,2.12755155,81.305,81.261,2.26402679]
[1770995164291,2.12755155,81.305,81.241,12.30905577]
[1770995164292,12.29800526,81.314,81.28,11.18989632]
[1770995164440,12.29800526,81.314,81.241,97.67878016]
[1770995164441,2.12755155,81.309,81.261,2.26402679]
[1770995164642,2.12755155,81.279,81.24,11.18989632]
[1770995164937,2.12755155,81.277,81.232,12.31033695]
[1770995165141,36.98,81.278,81.25,11.18989632]
[1770995165437,2.12755155,81.286,81.241,2.26402679]
[1770995165641,2.12755155,81.279,81.241,2.26402679]
[1770995166047,12.30345234,81.278,81.25,11.18989632]
[1770995166242,36.98,81.285,81.25,11.18989632]
[1770995166466,2.12755155,81.295,81.243,2.26402679]
[1770995166661,2.12755155,81.279,81.231,2.26402679]
[1770995166847,36.98,81.294,81.251,2.26402679]
[1770995167052,36.98,81.294,81.26,11.18989632]
[1770995167249,2.12755155,81.305,81.221,5.36086188]
[1770995167250,12.298459,81.311,81.28,11.18989632]
[1770995167654,37.0,81.312,81.29,11.18989632]
[1770995167963,37.0,81.312,81.281,2.26402679]
[1770995168164,12.298459,81.311,81.281,2.26402679]
[1770995168367,45.17215805,81.311,81.27,11.18989632]
[1770995168565,11.38989632,81.33,81.291,2.26402679]
[1770995168768,0.2,81.33,81.31,11.18989632]
[1770995169066,12.49569647,81.33,81.301,2.26402679]
[1770995169252,0.2,81.33,81.31,11.21689654]
[1770995169454,12.29573706,81.329,81.3,11.21689654]
[1770995169963,2.12755155,81.328,81.29,11.21689654]
[1770995170269,12.29603944,81.327,81.3,11.21689654]
[1770995170668,2.12755155,81.309,81.27,11.21689654]
[1770995170850,2.12755155,81.309,81.26,11.21689654]
[1770995171165,2.12755155,81.309,81.27,13.48092333]
[1770995171750,2.12755155,81.309,81.27,11.21689654]
[1770995171964,37.0,81.31,81.28,11.21689654]
[1770995172168,12.29664424,81.323,81.29,11.21689654]
[1770995172366,12.49566851,81.33,81.301,2.26402679]
[1770995172549,2.12755155,81.329,81.29,11.21689654]
[1770995172965,12.29573706,81.329,81.31,11.21689654]
[1770995173174,12.29573706,81.329,81.301,2.26402679]
[1770995173380,0.2,81.33,81.31,11.21689654]
[1770995173677,2.12755155,81.329,81.29,13.48092333]
[1770995174075,0.2,81.33,81.301,2.26402679]
[1770995174249,0.2,81.33,81.29,43.0557264]
[1770995174250,12.2921969,81.353,81.32,11.21689654]
[1770995174453,2.12755155,81.366,81.34,11.21689654]
[1770995174847,12.28805113,81.38,81.36,11.21689654]
[1770995175068,2.12755155,81.379,81.35,11.21689654]
[1770995175268,12.28805113,81.38,81.35,11.21689654]
[1770995175590,2.12755155,81.379,81.34,11.21689654]
[1770995175877,14.41560268,81.38,81.36,11.21689654]
[1770995176076,2.12755155,81.379,81.35,11.21689654]
[1770995176276,2.12755155,81.379,81.36,11.21689654]
[1770995176484,2.12755155,81.389,81.36,11.21689654]
[1770995176786,12.2851632,81.399,81.37,11.21689654]
[1770995177481,12.28380503,81.408,81.38,11.21689654]
[1770995177786,2.12755155,81.413,81.39,11.21689654]
[1770995177787,12.28315476,81.413,81.39,11.21689654]
[1770995178286,2.12755155,81.426,81.4,11.21689654]
[1770995178483,2.12755155,81.426,81.391,12.28637072]
[1770995178484,12.27932018,81.438,81.41,11.21689654]
[1770995178664,2.12755155,81.437,81.4,11.21689654]
[1770995178864,12.27837532,81.444,81.41,11.21689654]
[1770995179184,12.27837532,81.444,81.397,2.26402679]
[1770995179185,49.31822565,81.445,81.42,11.21689654]
[1770995179363,2.12755155,81.444,81.41,11.21689654]
[1770995179560,2.12755155,81.444,81.397,2.26402679]
[1770995179561,2.12755155,81.439,81.4,11.21689654]
[1770995180160,2.12755155,81.437,81.4,11.21689654]
[1770995180365,2.12755155,81.437,81.41,11.21689654]
[1770995180585,12.27927994,81.438,81.41,11.21689654]
[1770995180970,37.04,81.44,81.42,11.21689654]
[1770995181165,14.4065706,81.44,81.41,11.21689654]
[1770995181373,2.12755155,81.439,81.4,11.21689654]
[1770995181568,37.06,81.438,81.4,11.21689654]
[1770995181767,39.18755155,81.438,81.4,11.21689654]
[1770995182068,39.18755155,81.438,81.37,11.21689654]
[1770995182069,2.12755155,81.409,81.37,11.21689654]
[1770995182282,12.28380503,81.408,81.38,11.21689654]
[1770995182468,2.12755155,81.407,81.38,11.21689654]
[1770995182873,12.28380503,81.408,81.353,51.56]
[1770995182874,2.12755155,81.432,81.4,11.21689654]
[1770995183079,12.28084142,81.428,81.4,11.21689654]
[1770995183268,2.12755155,81.419,81.38,11.21689654]
[1770995183469,2.12755155,81.409,81.37,11.21689654]
[1770995183688,2.12755155,81.409,81.38,11.21689654]
[1770995183894,2.12755155,81.409,81.37,11.21689654]
[1770995184273,2.12755155,81.389,81.35,11.21689654]
[1770995184473,2.12755155,81.389,81.337,2.26402679]
[1770995184679,2.12755155,81.379,81.34,11.21689654]
[1770995184892,2.12755155,81.392,81.36,11.21689654]
[1770995185194,11.21689654,81.37,81.332,2.26402679]
[1770995185391,2.12755155,81.359,81.32,11.21689654]
[1770995185569,239.53419808,81.408,81.263,49.22260962]
[1770995185570,2.12755155,81.349,81.31,11.21689654]
[1770995185774,2.12755155,81.349,81.32,11.21689654]
[1770995186076,2.12755155,81.36,81.33,11.21689654]
[1770995186281,12.29120318,81.359,81.33,11.21689654]
[1770995187077,2.12755155,81.349,81.31,11.21689654]
[1770995187282,43.01921114,81.359,81.33,11.21689654]
[1770995187471,12.29120318,81.359,81.321,2.26402679]
[1770995187782,2.12755155,81.379,81.35,11.21689654]
[1770995187995,2.12755155,81.379,81.34,11.21689654]
[1770995188489,11.21689654,81.4,81.36,11.21689654]
[1770995188670,14.41271475,81.399,81.36,11.21689654]
[1770995189082,2.12755155,81.398,81.36,11.21689654]
[1770995189481,2.12755155,81.389,81.35,11.21689654]
[1770995189680,11.21689654,81.38,81.34,11.21689654]
[1770995189885,2.12755155,81.369,81.34,11.21689654]
[1770995190072,2.12755155,81.369,81.33,23.51248242]
[1770995190471,12.28984367,81.368,81.33,23.51248242]
[1770995190688,12.28984367,81.368,81.34,11.21689654]
[1770995190892,12.28909843,81.373,81.35,11.21689654]
[1770995191084,49.40763454,81.383,81.35,11.21689654]
[1770995191581,37.12,81.383,81.36,11.21689654]
[1770995191782,12.28546506,81.397,81.37,11.21689654]
[1770995192604,12.28546506,81.397,81.362,12.2906564]
[1770995192897,12.28546506,81.397,81.37,11.21689654]
[1770995193082,12.28546506,81.397,81.35,2.16843658]
[1770995193083,2.29074667,81.389,81.352,12.29211854]
[1770995193401,2.29074667,81.389,81.36,11.21689654]
[1770995194192,12.28365414,81.409,81.38,11.21689654]
[1770995194700,49.11325862,81.445,81.351,82.05102973]
[1770995194701,2.29074667,81.446,81.401,2.16843658]
[1770995194905,2.29074667,81.439,81.4,11.21689654]
[1770995195107,2.29074667,81.429,81.39,11.21689654]
[1770995195304,2.29074667,81.438,81.387,2.16843658]
[1770995195501,2.29074667,81.438,81.41,11.21689654]
[1770995196310,2.29074667,81.438,81.4,11.21689654]
[1770995196501,12.27943072,81.437,81.41,11.21689654]
[1770995196704,2.08979954,81.436,81.4,11.21689654]
[1770995197308,12.27877237,81.442,81.41,11.21689654]
[1770995197510,12.27822456,81.445,81.42,11.21689654]
[1770995197806,11.21689654,81.44,81.403,2.06847405]
[1770995198202,2.08979954,81.444,81.41,11.21689654]
[1770995198708,11.21689654,81.44,81.411,12.28335237]
[1770995198908,2.08979954,81.439,81.401,12.28486136]
[1770995199096,11.21689654,81.43,81.391,12.28637072]
[1770995199297,11.21689654,81.43,81.391,43.00229754]
[1770995199495,11.21689654,81.43,81.4,11.21689654]
[1770995199796,11.21689654,81.41,81.38,11.21689654]
[1770995199989,11.21689654,81.4,81.361,2.06847405]
[1770995200188,37.22,81.409,81.37,11.21689654]
[1770995200504,2.08979954,81.389,81.36,11.21689654]
[1770995200710,12.28682361,81.388,81.35,23.50945953]
[1770995200891,12.28682361,81.388,81.35,54.24086702]
[1770995201089,11.21689654,81.38,81.35,23.50945953]
[1770995201294,13.30669608,81.38,81.35,11.21689654]
[1770995201694,12.28682361,81.388,81.36,13.28537059]
[1770995201897,12.28682361,81.388,81.35,11.21689654]
[1770995202108,2.08979954,81.387,81.35,11.21689654]
[1770995202305,11.21689654,81.38,81.348,2.06847405]
[1770995202691,11.21689654,81.38,81.35,11.21689654]
[1770995203196,23.50503756,81.38,81.35,11.21689654]
[1770995203814,37.24,81.396,81.36,11.21689654]
[1770995203815,11.21689654,81.39,81.36,11.21689654]
[1770995203991,2.08979954,81.402,81.36,11.21689654]
[1770995203992,12.28561499,81.397,81.36,11.21689654]
[1770995204190,2.08979954,81.432,81.381,2.06847405]
[1770995204391,11.21689654,81.43,81.391,2.06847405]
[1770995204698,12.28063711,81.429,81.392,12.28621977]
[1770995204904,12.28063711,81.429,81.4,11.21689654]
[1770995205100,12.28063711,81.429,81.392,14.35469382]
[1770995205300,2.08979954,81.428,81.387,63.4668439]
[1770995205609,11.21689654,81.42,81.39,11.21689654]
[1770995205807,2.08979954,81.419,81.387,51.18]
[1770995206004,11.21689654,81.41,81.38,11.21689654]
[1770995206207,12.28063711,81.429,81.4,11.21689654]
[1770995206411,2.08979954,81.439,81.4,11.21689654]
[1770995206722,23.49587492,81.44,81.409,12.28359478]
[1770995207106,2.08979954,81.419,81.38,11.21689654]
[1770995207411,25.58567446,81.44,81.401,2.06847405]
[1770995207794,56.28312043,81.44,81.401,2.06847405]
[1770995207995,25.58567446,81.44,81.401,2.06847405]
[1770995208510,67.73640322,81.637,81.376,30.72132218]
[1770995208511,11.21689654,81.46,81.422,2.06847405]
[1770995208909,12.27611436,81.459,81.423,12.28154207]
[1770995209218,2.08979954,81.476,81.44,11.21689654]
[1770995209417,14.36169567,81.487,81.45,11.21689654]
[1770995209616,14.36169567,81.487,81.43,11.21689654]
[1770995209617,2.08979954,81.469,81.43,11.21689654]
[1770995209802,2.08979954,81.469,81.431,51.14]
[1770995210004,2.08979954,81.469,81.44,11.21689654]
[1770995210227,2.08979954,81.469,81.423,12.28154207]
[1770995210398,42.95163645,81.487,81.43,11.21689654]
[1770995210399,11.21689654,81.47,81.43,11.21689654]
[1770995210802,11.21689654,81.45,81.42,11.21689654]
[1770995211002,12.27701284,81.454,81.42,11.21689654]
[1770995211420,11.21689654,81.47,81.43,11.21689654]
[1770995211649,11.21689654,81.47,81.413,42.99067715]
[1770995211650,12.2719865,81.487,81.45,11.21689654]
[1770995211916,2.08979954,81.493,81.46,11.21689654]
[1770995212116,98.09325042,81.556,81.44,51.14]
[1770995212117,2.08979954,81.509,81.448,5.36086188]
[1770995212423,2.08979954,81.499,81.46,13.28537059]
[1770995212823,12.27023976,81.498,81.461,12.27581296]
[1770995213018,11.21689654,81.48,81.453,12.27701864]
[1770995213213,11.21689654,81.47,81.44,11.21689654]
[1770995213417,2.08979954,81.479,81.44,11.21689654]
[1770995213610,11.21689654,81.47,81.44,11.21689654]
[1770995213806,2.08979954,81.479,81.44,11.21689654]
[1770995214007,2.08979954,81.497,81.46,11.21689654]
[1770995214332,25.57374834,81.52,81.49,11.21689654]
[1770995214802,2.08979954,81.519,81.48,11.21689654]
[1770995215008,12.26557421,81.529,81.5,11.21689654]
[1770995215205,12.26557421,81.529,81.491,2.06847405]
[1770995215801,12.26557421,81.529,81.5,11.21689654]
[1770995215998,0.2,81.53,81.5,2.06847405]
[1770995216319,0.2,81.53,81.5,13.28537059]
[1770995216522,0.2,81.54,81.52,13.28537059]
[1770995216706,11.21689654,81.56,81.521,2.06847405]
[1770995216907,12.26106254,81.559,81.522,12.26662741]
[1770995217108,12.26001029,81.566,81.53,11.21689654]
[1770995217410,2.08979954,81.58,81.541,2.06847405]
[1770995217610,11.21689654,81.58,81.542,51.06]
[1770995217820,12.25679665,81.588,81.55,11.21689654]
[1770995218019,11.21689654,81.58,81.547,2.06847405]
[1770995218216,2.08979954,81.579,81.54,11.21689654]
[1770995218522,11.21689654,81.58,81.54,11.21689654]
[1770995218713,12.25679665,81.588,81.55,11.21689654]
[1770995219115,11.21689654,81.58,81.55,11.21689654]
[1770995219320,11.21689654,81.58,81.541,2.06847405]
[1770995219522,2.08979954,81.587,81.55,11.21689654]
[1770995219727,11.21689654,81.59,81.551,2.06847405]
[1770995220304,0.1,81.65,81.545,12.26309541]
[1770995220305,2.08979954,81.609,81.561,2.06847405]
[1770995220516,11.21689654,81.58,81.545,12.26309541]
[1770995220716,2.20118845,81.579,81.54,11.21689654]
[1770995220943,2.20118845,81.559,81.52,11.21689654]
[1770995221223,2.20118845,81.579,81.54,11.21689654]
[1770995222121,2.20118845,81.618,81.571,2.07224128]
[1770995222328,2.20118845,81.629,81.59,11.21689654]
[1770995222521,2.20118845,81.619,81.544,2.07224128]
[1770995222833,11.21689654,81.58,81.543,2.07224128]
[1770995223127,2.20118845,81.589,81.552,12.26211496]
[1770995223307,11.21689654,81.58,81.54,23.48081608]
[1770995223503,37.14,81.598,81.54,23.48081608]
[1770995223504,12.25564648,81.596,81.561,2.07224128]
[1770995223709,49.39447778,81.603,81.57,11.21689654]
[1770995224305,11.21689654,81.59,81.55,11.21689654]
[1770995224509,2.20118845,81.589,81.55,11.21689654]
[1770995225120,2.20118845,81.589,81.524,5.36086188]
[1770995225121,30.63612857,81.603,81.56,11.21689654]
[1770995225324,2.20118845,81.589,81.551,12.26226533]
[1770995225840,2.20118845,81.579,81.541,12.26376914]
[1770995226331,2.20118845,81.579,81.55,11.21689654]
[1770995226744,2.20118845,81.599,81.56,11.21689654]
[1770995227038,2.20118845,81.579,81.541,42.923192]
[1770995227220,2.20118845,81.569,81.534,12.26469391]
[1770995227418,2.20118845,81.569,81.54,11.21689654]
[1770995227821,37.12,81.573,81.52,11.21689654]
[1770995227822,2.20118845,81.559,81.52,11.21689654]
[1770995228332,2.20118845,81.559,81.48,60.30853275]
[1770995228333,2.20118845,81.549,81.511,12.26823969]
[1770995228732,13.41808499,81.56,81.52,13.28913782]
[1770995228936,42.90372403,81.578,81.54,11.21689654]
[1770995228937,2.20118845,81.573,81.54,11.21689654]
[1770995229237,2.20118845,81.567,81.531,12.26527333]
[1770995229540,2.20118845,81.559,81.52,11.21689654]
[1770995229725,11.21689654,81.56,81.52,11.21689654]
[1770995229726,2.20118845,81.557,81.52,11.21689654]
[1770995229913,2.20118845,81.557,81.53,11.21689654]
[1770995230318,12.25970969,81.568,81.54,11.21689654]
[1770995230519,37.12,81.567,81.54,11.21689654]
[1770995230820,11.21689654,81.59,81.55,13.28913782]
[1770995231140,39.34118845,81.589,81.56,11.14676631]
[1770995231323,12.25670441,81.588,81.555,12.2615408]
[1770995231525,2.20118845,81.587,81.555,12.2615408]
[1770995231925,2.20118845,81.579,81.54,11.14676631]
[1770995232125,2.20118845,81.569,81.53,11.14676631]
[1770995232325,2.20118845,81.559,81.52,11.14676631]
[1770995232522,2.20118845,81.549,81.51,11.14676631]
[1770995232926,2.20118845,81.549,81.508,12.26867294]
[1770995232927,13.34795476,81.56,81.52,11.14676631]
[1770995233129,2.20118845,81.559,81.51,11.14676631]
[1770995233442,42.91424506,81.558,81.52,11.14676631]
[1770995233625,2.20118845,81.557,81.52,11.14676631]
[1770995234019,2.20118845,81.557,81.52,13.21900759]
[1770995234230,2.20118845,81.557,81.52,11.14676631]
[1770995234537,2.20118845,81.555,81.52,11.14676631]
[1770995235125,37.14,81.556,81.5,11.14676631]
[1770995235126,2.20118845,81.539,81.5,11.14676631]
[1770995235449,2.20118845,81.519,81.48,11.14676631]
[1770995235745,2.20118845,81.519,81.416,49.13025926]
[1770995235746,2.20118845,81.489,81.45,11.14676631]
[1770995235926,2.20118845,81.487,81.45,11.14676631]
[1770995236241,2.20118845,81.487,81.423,42.98539724]
[1770995236242,2.20118845,81.469,81.43,11.14676631]
[1770995236445,37.16,81.468,81.431,2.07224128]
[1770995236620,37.16,81.467,81.431,2.07224128]
[1770995236821,37.16,81.467,81.399,49.14039503]
[1770995236822,2.20118845,81.459,81.42,11.14676631]
[1770995237128,4.61729252,81.494,81.405,2.07224128]
[1770995237129,2.20118845,81.449,81.41,11.14676631]
[1770995237326,4.61729252,81.474,81.393,2.07224128]
[1770995237327,2.20118845,81.439,81.393,2.07224128]
[1770995237639,2.20118845,81.439,81.4,11.14676631]
[1770995237836,11.14676631,81.45,81.42,11.14676631]
[1770995238139,37.16,81.449,81.411,2.07224128]
[1770995238436,37.16,81.449,81.391,43.00229754]
[1770995238437,13.34795476,81.44,81.4,13.21900759]
[1770995238646,11.14676631,81.43,81.4,11.14676631]
[1770995238824,37.16,81.433,81.41,11.14676631]
[1770995239357,11.14676631,81.43,81.39,2.07224128]
[1770995239525,2.20118845,81.429,81.391,12.28637072]
[1770995239940,42.97167551,81.449,81.38,11.14676631]
[1770995239941,2.20118845,81.419,81.38,11.14676631]
[1770995240238,2.20118845,81.419,81.38,23.43479776]
[1770995240443,2.20118845,81.417,81.38,23.43479776]
[1770995240652,11.14676631,81.42,81.381,2.07224128]
[1770995240820,2.20118845,81.419,81.38,11.14676631]
[1770995241020,2.20118845,81.419,81.39,11.14676631]
[1770995241244,2.20118845,81.419,81.381,12.28788046]
[1770995241434,12.28229629,81.418,81.381,12.28788046]
[1770995241641,2.20118845,81.418,81.381,12.28788046]
[1770995242137,2.20118845,81.418,81.38,23.43474093]
[1770995243441,12.28244715,81.417,81.38,23.43474093]
[1770995243750,2.20118845,81.429,81.391,2.07224128]
[1770995243930,37.22,81.432,81.41,11.14676631]
[1770995244242,11.14676631,81.44,81.401,2.07224128]
[1770995244422,37.22,81.435,81.41,11.14676631]
[1770995244623,2.20118845,81.434,81.4,11.14676631]
[1770995244830,11.14676631,81.43,81.4,11.14676631]
[1770995245030,2.20118845,81.429,81.387,2.07224128]
[1770995245224,37.22,81.428,81.391,2.07224128]
[1770995245425,2.20118845,81.419,81.38,11.14676631]
[1770995245644,37.22,81.418,81.38,13.21900759]
[1770995245849,37.22,81.418,81.39,11.14676631]
[1770995246355,37.22,81.418,81.369,43.01392421]
[1770995246356,2.20118845,81.409,81.38,11.14676631]
[1770995246728,37.24,81.417,81.38,11.14676631]
[1770995247228,11.14676631,81.41,81.38,11.14676631]
[1770995247424,2.20118845,81.408,81.371,12.28939056]
[1770995247750,49.54376391,81.409,81.37,11.14676631]
[1770995247751,2.20118845,81.399,81.37,11.14676631]
[1770995247935,2.20118845,81.399,81.361,12.29090104]
[1770995248447,2.20118845,81.397,81.36,11.14676631]
[1770995248646,37.28,81.396,81.36,11.14676631]
[1770995248847,37.28,81.396,81.333,50.68]
[1770995248848,2.20118845,81.369,81.307,2.07224128]
[1770995249049,11.14676631,81.36,81.32,11.14676631]
[1770995249349,11.14676631,81.36,81.307,43.04672414]
[1770995249350,2.20118845,81.365,81.33,11.14676631]
[1770995249532,37.28,81.366,81.331,2.07224128]
[1770995249723,37.28,81.366,81.274,49.2160914]
[1770995249724,13.34795476,81.35,81.318,12.29738354]
[1770995249930,2.20118845,81.349,81.318,12.29738354]
[1770995250131,37.28,81.349,81.32,11.14676631]
[1770995251054,11.14676631,81.35,81.32,11.14676631]
[1770995251255,34.85521029,81.349,81.33,11.14676631]
[1770995251436,37.28,81.365,81.331,12.2954347]
[1770995251751,2.30771502,81.364,81.331,43.03402146]
[1770995251931,2.30771502,81.375,81.332,5.36086188]
[1770995252131,67.73640322,81.603,81.331,12.2954347]
[1770995252132,2.30771502,81.369,81.331,12.2954347]
[1770995252437,37.3,81.368,81.34,11.14676631]
[1770995252843,11.14676631,81.36,81.331,12.2954347]
[1770995253037,2.30771502,81.359,81.331,12.2954347]
[1770995253552,2.30771502,81.359,81.331,43.03402146]
[1770995253748,37.3,81.368,81.34,11.14676631]
[1770995254133,2.30771502,81.359,81.331,12.2954347]
[1770995254958,2.30771502,81.359,81.326,12.29612543]
[1770995255151,2.30771502,81.349,81.312,12.29830775]
[1770995255357,2.30771502,81.349,81.32,11.14676631]
[1770995255561,2.30771502,81.349,81.321,12.29694666]
[1770995255734,4.61729252,81.384,81.321,43.03931333]
[1770995255735,37.34,81.354,81.321,43.03931333]
[1770995255933,39.64771502,81.354,81.321,43.03931333]
[1770995256130,2.30771502,81.354,81.33,11.14676631]
[1770995256336,2.30771502,81.352,81.321,12.29694666]
[1770995257040,2.30771502,81.352,81.321,43.03931333]
[1770995257240,2.30771502,81.352,81.32,11.14676631]
[1770995257457,2.30771502,81.349,81.311,12.298459]
[1770995257660,2.30771502,81.349,81.312,30.74576938]
[1770995257840,12.29286522,81.348,81.312,30.74576938]
[1770995258044,2.30771502,81.347,81.32,11.14676631]
[1770995258251,2.30771502,81.347,81.312,30.74576938]
[1770995258441,11.14676631,81.34,81.31,12.2985135]
[1770995258636,39.64771502,81.339,81.31,12.2985135]
[1770995258838,2.30771502,81.338,81.306,12.29919598]
[1770995259135,2.30771502,81.338,81.282,4.61729252]
[1770995259136,2.30771502,81.329,81.29,11.14676631]
[1770995259638,37.34,81.329,81.301,12.29997171]
[1770995259955,2.30771502,81.339,81.31,11.14676631]
[1770995260140,2.30771502,81.337,81.301,12.29997171]
[1770995260641,2.30771502,81.329,81.301,12.29997171]
[1770995260838,11.14676631,81.32,81.292,12.30133346]
[1770995261037,37.34,81.322,81.292,43.05466712]
[1770995261239,2.30771502,81.321,81.292,12.30133346]